[Event "Early-Titled-Tuesday-Blitz-October-17-2023"]
[Site "Chess.com"]
[Date "2023.10.17"]
[Round "4"]
[White "Bilan_Danila"]
[Black "GiorgianBarbosa"]
[Result "1-0"]
[WhiteElo "2591"]
[BlackElo "2373"]
[TimeControl "180+1"]
[EndTime "8:40:15 PDT"]
[Termination "Bilan_Danila won by checkmate"]

1. d4 {[%clk 0:03:00.9]} 1... Nf6 {[%clk 0:02:57.3]} 2. Nf3 {[%clk 0:03:00.5]}
2... g6 {[%clk 0:02:58.2]} 3. Bg5 {[%clk 0:02:59.3]} 3... Bg7 {[%clk 0:02:59.1]}
4. c3 {[%clk 0:02:59.5]} 4... O-O {[%clk 0:02:59.9]} 5. Nbd2 {[%clk 0:02:59.8]}
5... b6 {[%clk 0:03:00.3]} 6. e4 {[%clk 0:03:00]} 6... Bb7 {[%clk 0:03:00.8]} 7.
e5 {[%clk 0:03:00.3]} 7... Ne4 {[%clk 0:03:01]} 8. Nxe4 {[%clk 0:02:51.2]} 8...
Bxe4 {[%clk 0:03:01.9]} 9. Bd3 {[%clk 0:02:42.1]} 9... Bb7 {[%clk 0:02:50.1]}
10. O-O {[%clk 0:02:41]} 10... d6 {[%clk 0:02:50.4]} 11. Re1 {[%clk 0:02:31.1]}
11... Nd7 {[%clk 0:02:43.8]} 12. exd6 {[%clk 0:02:21.7]} 12... cxd6 {[%clk
0:02:19.3]} 13. Bxe7 {[%clk 0:02:19.4]} 13... Qc8 {[%clk 0:01:53.4]} 14. Bxf8
{[%clk 0:02:14.7]} 14... Nxf8 {[%clk 0:01:53.7]} 15. Be4 {[%clk 0:02:07.4]}
15... d5 {[%clk 0:01:48]} 16. Bd3 {[%clk 0:02:05.3]} 16... Ne6 {[%clk
0:01:48.9]} 17. Ne5 {[%clk 0:02:00.1]} 17... h6 {[%clk 0:01:35.8]} 18. Qf3
{[%clk 0:01:40.1]} 18... Ng5 {[%clk 0:01:34.5]} 19. Qe3 {[%clk 0:01:33.4]} 19...
Ne4 {[%clk 0:01:33.4]} 20. f3 {[%clk 0:01:28.4]} 20... Nd6 {[%clk 0:01:33]} 21.
Re2 {[%clk 0:01:20.8]} 21... Kh7 {[%clk 0:01:31.1]} 22. Rae1 {[%clk 0:01:17.4]}
22... h5 {[%clk 0:01:30.6]} 23. Qg5 {[%clk 0:01:11.5]} 23... Kg8 {[%clk
0:01:21]} 24. Nxg6 {[%clk 0:01:07.3]} 24... fxg6 {[%clk 0:01:19.9]} 25. Qxg6
{[%clk 0:01:07.7]} 25... Ba6 {[%clk 0:00:11.6]} 26. Re7 {[%clk 0:01:02]} 26...
Qf8 {[%clk 0:00:05.5]} 27. Qh7# {[%clk 0:01:00.5]} 1-0

[Event "Early-Titled-Tuesday-Blitz-October-17-2023"]
[Site "Chess.com"]
[Date "2023.10.17"]
[Round "4"]
[White "wqws"]
[Black "Treasurechess777"]
[Result "1-0"]
[WhiteElo "2638"]
[BlackElo "2458"]
[TimeControl "180+1"]
[EndTime "8:40:17 PDT"]
[Termination "wqws won on time"]

1. e4 {[%clk 0:02:59.8]} 1... Nf6 {[%clk 0:03:00.9]} 2. e5 {[%clk 0:02:59.8]}
2... Nd5 {[%clk 0:03:01.1]} 3. Nf3 {[%clk 0:03:00]} 3... Nb6 {[%clk 0:03:00.5]}
4. d4 {[%clk 0:03:00.4]} 4... d5 {[%clk 0:02:58.7]} 5. a4 {[%clk 0:02:59.8]}
5... a5 {[%clk 0:02:51.2]} 6. h3 {[%clk 0:02:59.4]} 6... Bf5 {[%clk 0:02:41.9]}
7. Bd3 {[%clk 0:02:57.4]} 7... Bxd3 {[%clk 0:02:41.3]} 8. Qxd3 {[%clk
0:02:58.2]} 8... e6 {[%clk 0:02:42]} 9. O-O {[%clk 0:02:55.8]} 9... c5 {[%clk
0:02:41.6]} 10. Bg5 {[%clk 0:02:48.3]} 10... Qc7 {[%clk 0:02:35.8]} 11. Na3
{[%clk 0:02:46.9]} 11... c4 {[%clk 0:02:29.3]} 12. Nb5 {[%clk 0:02:46.1]} 12...
Qd7 {[%clk 0:02:17.9]} 13. Qd2 {[%clk 0:02:43.6]} 13... Nxa4 {[%clk 0:01:48]}
14. Nd6+ {[%clk 0:02:42]} 14... Bxd6 {[%clk 0:01:47.1]} 15. exd6 {[%clk
0:02:42.9]} 15... Nb6 {[%clk 0:01:38.6]} 16. Be7 {[%clk 0:02:01]} 16... f6
{[%clk 0:01:26.4]} 17. Rxa5 {[%clk 0:01:58.7]} 17... Nc6 {[%clk 0:01:16.6]} 18.
Rxa8+ {[%clk 0:01:57.9]} 18... Nxa8 {[%clk 0:01:17.5]} 19. Ra1 {[%clk
0:01:26.9]} 19... Kf7 {[%clk 0:01:11]} 20. Qf4 {[%clk 0:01:24.6]} 20... Nb6
{[%clk 0:00:36.2]} 21. Ne5+ {[%clk 0:01:23.3]} 21... Nxe5 {[%clk 0:00:36]} 22.
dxe5 {[%clk 0:01:23]} 22... f5 {[%clk 0:00:23.6]} 23. g4 {[%clk 0:01:22.3]}
23... g6 {[%clk 0:00:23.6]} 24. Qg5 {[%clk 0:01:21.4]} 24... Rb8 {[%clk
0:00:14.2]} 25. Qf6+ {[%clk 0:01:20.7]} 25... Kg8 {[%clk 0:00:14.2]} 26. gxf5
{[%clk 0:01:20.6]} 26... exf5 {[%clk 0:00:08.4]} 27. e6 {[%clk 0:01:20]} 27...
Qe8 {[%clk 0:00:08.5]} 28. d7 {[%clk 0:01:19.3]} 28... Nxd7 {[%clk 0:00:07.5]}
29. exd7 {[%clk 0:01:20.2]} 29... Qxd7 {[%clk 0:00:07.7]} 30. Bd6 {[%clk
0:01:20.3]} 30... Re8 {[%clk 0:00:06.9]} 31. Be5 {[%clk 0:01:19.9]} 31... Re6
{[%clk 0:00:03.6]} 32. Qh8+ {[%clk 0:01:19]} 32... Kf7 {[%clk 0:00:03.5]} 33.
Qg7+ {[%clk 0:01:18.8]} 1-0

[Event "Early-Titled-Tuesday-Blitz-October-17-2023"]
[Site "Chess.com"]
[Date "2023.10.17"]
[Round "4"]
[White "MikaelyanArman"]
[Black "whitemirrorninja"]
[Result "1-0"]
[WhiteElo "2855"]
[BlackElo "2507"]
[TimeControl "180+1"]
[EndTime "8:40:20 PDT"]
[Termination "MikaelyanArman won by resignation"]

1. d4 {[%clk 0:03:00.9]} 1... e6 {[%clk 0:02:58.9]} 2. Nf3 {[%clk 0:03:00.7]}
2... f5 {[%clk 0:02:58.7]} 3. g3 {[%clk 0:02:59]} 3... Nf6 {[%clk 0:02:59.2]} 4.
Bg2 {[%clk 0:02:59.6]} 4... b6 {[%clk 0:02:59.6]} 5. O-O {[%clk 0:02:59.9]} 5...
Bb7 {[%clk 0:02:59.9]} 6. c4 {[%clk 0:03:00.2]} 6... Be7 {[%clk 0:03:00]} 7. Nc3
{[%clk 0:03:00.8]} 7... Ne4 {[%clk 0:02:57.6]} 8. Ne5 {[%clk 0:02:57]} 8... Nxc3
{[%clk 0:02:55.3]} 9. bxc3 {[%clk 0:02:57.9]} 9... Bxg2 {[%clk 0:02:55.4]} 10.
Kxg2 {[%clk 0:02:58.7]} 10... O-O {[%clk 0:02:54.9]} 11. Qd3 {[%clk 0:02:47.1]}
11... Nc6 {[%clk 0:02:37.7]} 12. Nxc6 {[%clk 0:02:42.8]} 12... dxc6 {[%clk
0:02:38.6]} 13. e4 {[%clk 0:02:41.8]} 13... c5 {[%clk 0:02:32.3]} 14. Bf4 {[%clk
0:02:30.3]} 14... cxd4 {[%clk 0:02:11.7]} 15. cxd4 {[%clk 0:02:30.1]} 15... c5
{[%clk 0:02:11.7]} 16. d5 {[%clk 0:02:25.7]} 16... fxe4 {[%clk 0:02:11.7]} 17.
Qxe4 {[%clk 0:02:26.6]} 17... exd5 {[%clk 0:02:12]} 18. cxd5 {[%clk 0:02:25.2]}
18... Bf6 {[%clk 0:02:12]} 19. Rae1 {[%clk 0:02:20.4]} 19... Re8 {[%clk
0:02:09.2]} 20. Qf5 {[%clk 0:02:16]} 20... Qc8 {[%clk 0:01:40.4]} 21. Rxe8+
{[%clk 0:02:12.7]} 21... Qxe8 {[%clk 0:01:41.3]} 22. Rd1 {[%clk 0:02:02.6]}
22... Rd8 {[%clk 0:01:36.9]} 23. Bc7 {[%clk 0:01:44]} 23... Qd7 {[%clk
0:01:31.6]} 24. Qxd7 {[%clk 0:01:27.2]} 24... Rxd7 {[%clk 0:01:31.7]} 25. d6
{[%clk 0:01:28.1]} 25... Kf7 {[%clk 0:01:12.3]} 26. f4 {[%clk 0:01:24.5]} 26...
c4 {[%clk 0:01:04]} 27. Kf3 {[%clk 0:01:24.2]} 27... c3 {[%clk 0:01:04.2]} 28.
Ke4 {[%clk 0:01:20.1]} 28... Bd8 {[%clk 0:00:46.8]} 29. Bxd8 {[%clk 0:01:10.3]}
29... Rxd8 {[%clk 0:00:47.7]} 30. Kd5 {[%clk 0:01:09.8]} 30... c2 {[%clk
0:00:13.5]} 31. Rc1 {[%clk 0:01:09.5]} 31... Rc8 {[%clk 0:00:13.8]} 32. d7
{[%clk 0:01:09.6]} 32... Rc3 {[%clk 0:00:13.3]} 33. Kd4 {[%clk 0:01:06.1]} 1-0

[Event "Early-Titled-Tuesday-Blitz-October-17-2023"]
[Site "Chess.com"]
[Date "2023.10.17"]
[Round "4"]
[White "Kotofeyca"]
[Black "KononenkoD"]
[Result "0-1"]
[WhiteElo "2442"]
[BlackElo "2637"]
[TimeControl "180+1"]
[EndTime "8:40:31 PDT"]
[Termination "KononenkoD won on time"]

1. d4 {[%clk 0:03:00.9]} 1... Nf6 {[%clk 0:02:45.8]} 2. c4 {[%clk 0:03:00.8]}
2... c5 {[%clk 0:02:45.1]} 3. Nf3 {[%clk 0:03:00.7]} 3... g6 {[%clk 0:02:44.6]}
4. Nc3 {[%clk 0:03:00.7]} 4... cxd4 {[%clk 0:02:44.4]} 5. Nxd4 {[%clk
0:03:01.6]} 5... d5 {[%clk 0:02:43.8]} 6. cxd5 {[%clk 0:02:59.7]} 6... Nxd5
{[%clk 0:02:44.7]} 7. Bd2 {[%clk 0:02:55.2]} 7... Bg7 {[%clk 0:02:43.4]} 8. e4
{[%clk 0:02:50.9]} 8... Nb6 {[%clk 0:02:17.6]} 9. Bb5+ {[%clk 0:02:30.2]} 9...
Bd7 {[%clk 0:02:15.5]} 10. Be3 {[%clk 0:02:23.4]} 10... O-O {[%clk 0:02:14.5]}
11. O-O {[%clk 0:02:20]} 11... Bxb5 {[%clk 0:02:09.7]} 12. Ndxb5 {[%clk
0:02:18.4]} 12... Nc6 {[%clk 0:02:09.1]} 13. Qxd8 {[%clk 0:02:05.2]} 13... Rfxd8
{[%clk 0:02:06.9]} 14. Nxa7 {[%clk 0:01:56.1]} 14... Nc4 {[%clk 0:02:06.7]} 15.
Nxc6 {[%clk 0:01:53.5]} 15... bxc6 {[%clk 0:02:03.9]} 16. Bc1 {[%clk 0:00:44.5]}
16... Rab8 {[%clk 0:01:58.8]} 17. Nd1 {[%clk 0:00:19.8]} 17... Rd7 {[%clk
0:01:23.6]} 18. f3 {[%clk 0:00:16.4]} 18... Bd4+ {[%clk 0:01:18.2]} 19. Kh1
{[%clk 0:00:15.6]} 19... Be5 {[%clk 0:00:56.8]} 20. Rb1 {[%clk 0:00:13.6]} 20...
Na3 {[%clk 0:00:54.6]} 21. Ra1 {[%clk 0:00:13.2]} 21... Nc2 {[%clk 0:00:54.9]}
22. Rb1 {[%clk 0:00:13.4]} 22... Ra7 {[%clk 0:00:52.5]} 23. a3 {[%clk
0:00:07.8]} 23... Rxa3 {[%clk 0:00:51.2]} 24. bxa3 {[%clk 0:00:05.1]} 24... Rxb1
{[%clk 0:00:51.5]} 25. Ne3 {[%clk 0:00:04.1]} 25... Nxe3 {[%clk 0:00:50.1]} 26.
Re1 {[%clk 0:00:03.2]} 26... Nc4 {[%clk 0:00:48.2]} 27. Bd2 {[%clk 0:00:02]}
27... Nxd2 {[%clk 0:00:45.7]} 0-1

[Event "Early-Titled-Tuesday-Blitz-October-17-2023"]
[Site "Chess.com"]
[Date "2023.10.17"]
[Round "4"]
[White "noblerone"]
[Black "ChessSkool"]
[Result "0-1"]
[WhiteElo "2514"]
[BlackElo "2675"]
[TimeControl "180+1"]
[EndTime "8:40:34 PDT"]
[Termination "ChessSkool won on time"]

1. d4 {[%clk 0:02:55.8]} 1... Nf6 {[%clk 0:02:57.9]} 2. Nf3 {[%clk 0:02:51.5]}
2... g6 {[%clk 0:02:57.8]} 3. Bg5 {[%clk 0:02:51.6]} 3... Bg7 {[%clk 0:02:57.8]}
4. Nbd2 {[%clk 0:02:52.1]} 4... O-O {[%clk 0:02:41.5]} 5. c3 {[%clk 0:02:51.5]}
5... d6 {[%clk 0:02:37.4]} 6. e4 {[%clk 0:02:37.8]} 6... Nc6 {[%clk 0:02:37]} 7.
Be2 {[%clk 0:02:33.6]} 7... e5 {[%clk 0:02:37]} 8. O-O {[%clk 0:02:27.4]} 8...
Re8 {[%clk 0:02:35.9]} 9. dxe5 {[%clk 0:02:24.3]} 9... Nxe5 {[%clk 0:02:25.1]}
10. Nxe5 {[%clk 0:02:22.9]} 10... Rxe5 {[%clk 0:02:25.3]} 11. f4 {[%clk
0:02:19.3]} 11... Re8 {[%clk 0:02:24.4]} 12. Bf3 {[%clk 0:02:16.6]} 12... Bd7
{[%clk 0:01:46.3]} 13. Re1 {[%clk 0:02:12.5]} 13... h6 {[%clk 0:01:28.8]} 14.
Bh4 {[%clk 0:02:06.2]} 14... Qc8 {[%clk 0:01:12.8]} 15. Qc2 {[%clk 0:01:41]}
15... Bc6 {[%clk 0:01:10.4]} 16. Rad1 {[%clk 0:01:35.2]} 16... Nd7 {[%clk
0:01:06.1]} 17. Nc4 {[%clk 0:01:22]} 17... a5 {[%clk 0:01:05.9]} 18. Bg4 {[%clk
0:01:09.1]} 18... b5 {[%clk 0:01:01.4]} 19. Nd2 {[%clk 0:01:02]} 19... Qb7
{[%clk 0:01:01.5]} 20. Bf3 {[%clk 0:00:50.2]} 20... Nc5 {[%clk 0:00:59.2]} 21.
Re2 {[%clk 0:00:49.4]} 21... b4 {[%clk 0:00:47.4]} 22. c4 {[%clk 0:00:40.2]}
22... Ne6 {[%clk 0:00:45]} 23. Bg3 {[%clk 0:00:13.1]} 23... Nd4 {[%clk
0:00:44.8]} 24. Qd3 {[%clk 0:00:14]} 24... Nxe2+ {[%clk 0:00:44.5]} 25. Qxe2
{[%clk 0:00:14.9]} 25... Bxb2 {[%clk 0:00:43.2]} 26. Nb3 {[%clk 0:00:06.7]}
26... Bg7 {[%clk 0:00:43.1]} 27. Nd4 {[%clk 0:00:05.2]} 27... Bxe4 {[%clk
0:00:42.8]} 0-1

[Event "Early-Titled-Tuesday-Blitz-October-17-2023"]
[Site "Chess.com"]
[Date "2023.10.17"]
[Round "4"]
[White "Casper"]
[Black "pinguino120"]
[Result "1-0"]
[WhiteElo "2400"]
[BlackElo "2198"]
[TimeControl "180+1"]
[EndTime "8:40:34 PDT"]
[Termination "Casper won by resignation"]

1. e4 {[%clk 0:03:00.9]} 1... c5 {[%clk 0:02:58.6]} 2. d4 {[%clk 0:03:00.6]}
2... cxd4 {[%clk 0:02:57.5]} 3. Qxd4 {[%clk 0:03:01.5]} 3... Nc6 {[%clk
0:02:54.8]} 4. Qe3 {[%clk 0:03:02.2]} 4... d5 {[%clk 0:02:43.2]} 5. exd5 {[%clk
0:03:03.1]} 5... Qxd5 {[%clk 0:02:43.1]} 6. Qb3 {[%clk 0:03:03.9]} 6... Qxb3
{[%clk 0:02:41.8]} 7. axb3 {[%clk 0:03:04.8]} 7... e5 {[%clk 0:02:29.9]} 8. Bb5
{[%clk 0:03:02.2]} 8... Bd7 {[%clk 0:02:25]} 9. Be3 {[%clk 0:02:57.5]} 9... Nf6
{[%clk 0:02:17.1]} 10. Nf3 {[%clk 0:02:55.1]} 10... Nd5 {[%clk 0:02:16.5]} 11.
Bxc6 {[%clk 0:02:51.6]} 11... Bxc6 {[%clk 0:02:12.9]} 12. Rxa7 {[%clk 0:02:23]}
12... Rxa7 {[%clk 0:01:47.5]} 13. Bxa7 {[%clk 0:02:23.9]} 13... Bd6 {[%clk
0:01:17.5]} 14. O-O {[%clk 0:02:12.9]} 14... O-O {[%clk 0:01:06.3]} 15. Rd1
{[%clk 0:02:05.5]} 15... Bc7 {[%clk 0:00:59.3]} 16. Bc5 {[%clk 0:02:03]} 16...
Re8 {[%clk 0:00:39.3]} 17. Nc3 {[%clk 0:01:54.4]} 17... Nf4 {[%clk 0:00:38.8]}
18. Bd6 {[%clk 0:01:47.5]} 18... Ba5 {[%clk 0:00:22.2]} 19. Bxe5 {[%clk
0:01:37.1]} 19... Nxg2 {[%clk 0:00:21.8]} 20. Nd4 {[%clk 0:01:13.8]} 20... Rxe5
{[%clk 0:00:20.3]} 21. Nxc6 {[%clk 0:01:14.2]} 21... bxc6 {[%clk 0:00:19.7]} 22.
Kxg2 {[%clk 0:01:14.7]} 22... f5 {[%clk 0:00:19.4]} 23. Kf3 {[%clk 0:01:13.4]}
23... Kf7 {[%clk 0:00:18.6]} 24. Rd7+ {[%clk 0:01:11.4]} 24... Re7 {[%clk
0:00:18.6]} 25. Rd6 {[%clk 0:01:05.5]} 25... Rc7 {[%clk 0:00:18.6]} 26. Ne2
{[%clk 0:01:04.9]} 26... g6 {[%clk 0:00:18.4]} 27. Nd4 {[%clk 0:01:02.7]} 27...
Bb4 {[%clk 0:00:18.7]} 28. Rxc6 {[%clk 0:01:01.2]} 28... Rxc6 {[%clk 0:00:19.3]}
29. Nxc6 {[%clk 0:01:01.6]} 29... Bc5 {[%clk 0:00:19.6]} 30. b4 {[%clk
0:01:00.1]} 30... Bb6 {[%clk 0:00:19.7]} 31. c4 {[%clk 0:00:59.5]} 31... Ke6
{[%clk 0:00:20.3]} 32. c5 {[%clk 0:00:59.8]} 32... Bc7 {[%clk 0:00:20.9]} 33. h3
{[%clk 0:00:57.8]} 33... Kd5 {[%clk 0:00:21.4]} 34. Na7 {[%clk 0:00:47]} 34...
Kc4 {[%clk 0:00:21]} 35. Nc6 {[%clk 0:00:46.6]} 35... Kb5 {[%clk 0:00:20.6]} 36.
Ne7 {[%clk 0:00:44.6]} 36... Kxb4 {[%clk 0:00:20.9]} 37. Nd5+ {[%clk 0:00:45]}
37... Kxc5 {[%clk 0:00:20.9]} 38. Nxc7 {[%clk 0:00:45.9]} 1-0

[Event "Early-Titled-Tuesday-Blitz-October-17-2023"]
[Site "Chess.com"]
[Date "2023.10.17"]
[Round "4"]
[White "Arystanner"]
[Black "bazar-wokzal"]
[Result "1-0"]
[WhiteElo "2797"]
[BlackElo "2564"]
[TimeControl "180+1"]
[EndTime "8:40:36 PDT"]
[Termination "Arystanner won on time"]

1. e4 {[%clk 0:03:00.9]} 1... c5 {[%clk 0:02:57.6]} 2. Nf3 {[%clk 0:03:00.9]}
2... d6 {[%clk 0:02:57.7]} 3. Nc3 {[%clk 0:03:00.3]} 3... Nf6 {[%clk 0:02:57.3]}
4. d4 {[%clk 0:03:00.3]} 4... cxd4 {[%clk 0:02:57.2]} 5. Nxd4 {[%clk 0:03:00.6]}
5... a6 {[%clk 0:02:57.6]} 6. Be2 {[%clk 0:03:00.7]} 6... g6 {[%clk 0:02:55.2]}
7. Be3 {[%clk 0:03:00.2]} 7... Bg7 {[%clk 0:02:55]} 8. Qd2 {[%clk 0:03:00.7]}
8... O-O {[%clk 0:02:51.9]} 9. O-O-O {[%clk 0:03:00.3]} 9... Ng4 {[%clk
0:02:51.1]} 10. Bxg4 {[%clk 0:03:00.1]} 10... Bxg4 {[%clk 0:02:51.2]} 11. f3
{[%clk 0:03:00.7]} 11... Be6 {[%clk 0:02:51.5]} 12. Bh6 {[%clk 0:02:59.1]} 12...
Nc6 {[%clk 0:02:49.3]} 13. Bxg7 {[%clk 0:02:59.1]} 13... Kxg7 {[%clk 0:02:49.1]}
14. h4 {[%clk 0:02:59]} 14... Nxd4 {[%clk 0:02:45.9]} 15. Qxd4+ {[%clk
0:02:59.3]} 15... f6 {[%clk 0:02:46.4]} 16. h5 {[%clk 0:03:00.1]} 16... g5
{[%clk 0:02:45.7]} 17. h6+ {[%clk 0:02:58.1]} 17... Kg8 {[%clk 0:02:43.7]} 18.
f4 {[%clk 0:02:58.6]} 18... gxf4 {[%clk 0:02:41.8]} 19. g3 {[%clk 0:02:58.6]}
19... f3 {[%clk 0:02:21.5]} 20. Rdf1 {[%clk 0:02:57.9]} 20... Rc8 {[%clk
0:02:17.4]} 21. Rxf3 {[%clk 0:02:57.6]} 21... Qa5 {[%clk 0:02:16.2]} 22. a3
{[%clk 0:02:48.6]} 22... Rc4 {[%clk 0:02:15.3]} 23. Qd2 {[%clk 0:02:46.8]} 23...
Rfc8 {[%clk 0:02:14.9]} 24. Kb1 {[%clk 0:02:40]} 24... b5 {[%clk 0:02:13.4]} 25.
Re1 {[%clk 0:02:36]} 25... b4 {[%clk 0:02:13.2]} 26. Nd5 {[%clk 0:02:36.5]}
26... Rxc2 {[%clk 0:02:02.7]} 27. Nxe7+ {[%clk 0:02:34.9]} 27... Kf7 {[%clk
0:02:02.5]} 28. Qxd6 {[%clk 0:02:32.2]} 28... Rxb2+ {[%clk 0:01:45.7]} 29. Kxb2
{[%clk 0:02:31.6]} 29... bxa3+ {[%clk 0:01:45.8]} 30. Rxa3 {[%clk 0:02:29.4]}
30... Qxe1 {[%clk 0:01:45.3]} 31. Nxc8 {[%clk 0:02:28]} 31... Qf2+ {[%clk
0:01:17]} 32. Kc3 {[%clk 0:02:26.5]} 32... Qe1+ {[%clk 0:00:55.5]} 33. Qd2
{[%clk 0:02:14.4]} 33... Qxg3+ {[%clk 0:00:51.4]} 34. Kb2 {[%clk 0:02:05.9]}
34... Qb8+ {[%clk 0:00:50.1]} 35. Kc1 {[%clk 0:02:04.6]} 35... Qxc8+ {[%clk
0:00:49.6]} 36. Rc3 {[%clk 0:02:05.4]} 36... Qb7 {[%clk 0:00:45.9]} 37. Qf4
{[%clk 0:02:05.7]} 37... Qb4 {[%clk 0:00:18.7]} 38. Rc7+ {[%clk 0:02:05.3]}
38... Ke8 {[%clk 0:00:15.8]} 39. Qe3 {[%clk 0:01:56.8]} 39... Ba2 {[%clk
0:00:10.6]} 40. Qd3 {[%clk 0:01:50.1]} 40... Be6 {[%clk 0:00:04.8]} 41. Rc3
{[%clk 0:01:18.9]} 41... Kf7 {[%clk 0:00:02.4]} 42. e5 {[%clk 0:01:19.4]} 1-0

[Event "Early-Titled-Tuesday-Blitz-October-17-2023"]
[Site "Chess.com"]
[Date "2023.10.17"]
[Round "4"]
[White "TregubovP"]
[Black "Road2GM3000"]
[Result "1-0"]
[WhiteElo "2601"]
[BlackElo "2428"]
[TimeControl "180+1"]
[EndTime "8:40:40 PDT"]
[Termination "TregubovP won on time"]

1. e4 {[%clk 0:03:00.9]} 1... c5 {[%clk 0:02:59.6]} 2. Nf3 {[%clk 0:03:00.8]}
2... d6 {[%clk 0:03:00.3]} 3. Bb5+ {[%clk 0:03:00.9]} 3... Bd7 {[%clk
0:02:59.9]} 4. Bxd7+ {[%clk 0:02:59.6]} 4... Nxd7 {[%clk 0:03:00.8]} 5. O-O
{[%clk 0:02:59.1]} 5... Ngf6 {[%clk 0:03:01.6]} 6. Re1 {[%clk 0:02:58.4]} 6...
e6 {[%clk 0:03:02.3]} 7. c3 {[%clk 0:02:57.5]} 7... Be7 {[%clk 0:03:03]} 8. d4
{[%clk 0:02:56.4]} 8... O-O {[%clk 0:03:03.8]} 9. e5 {[%clk 0:02:38.3]} 9... Ne8
{[%clk 0:03:03.5]} 10. Bf4 {[%clk 0:02:36.1]} 10... dxe5 {[%clk 0:02:54.4]} 11.
dxe5 {[%clk 0:02:36.3]} 11... Nc7 {[%clk 0:02:52.5]} 12. c4 {[%clk 0:02:36.7]}
12... Nb6 {[%clk 0:02:52.6]} 13. b3 {[%clk 0:02:36.4]} 13... Qxd1 {[%clk
0:02:52.3]} 14. Rxd1 {[%clk 0:02:36.7]} 14... Rad8 {[%clk 0:02:51.7]} 15. Nc3
{[%clk 0:02:37.3]} 15... a6 {[%clk 0:02:50]} 16. Kf1 {[%clk 0:02:36]} 16...
Rxd1+ {[%clk 0:02:49.2]} 17. Rxd1 {[%clk 0:02:35.5]} 17... Rd8 {[%clk
0:02:49.9]} 18. Rxd8+ {[%clk 0:02:34.9]} 18... Bxd8 {[%clk 0:02:50.8]} 19. Ne4
{[%clk 0:02:30.5]} 19... Nd7 {[%clk 0:02:44.2]} 20. Nd6 {[%clk 0:02:18.8]} 20...
b5 {[%clk 0:02:42.6]} 21. Ke2 {[%clk 0:02:17.9]} 21... Be7 {[%clk 0:02:37.3]}
22. Kd3 {[%clk 0:02:16]} 22... Bxd6 {[%clk 0:02:34.7]} 23. exd6 {[%clk 0:02:16]}
23... Ne8 {[%clk 0:02:35]} 24. cxb5 {[%clk 0:02:14.9]} 24... axb5 {[%clk
0:02:34.5]} 25. a4 {[%clk 0:02:15.4]} 25... bxa4 {[%clk 0:02:29.1]} 26. bxa4
{[%clk 0:02:15.4]} 26... f6 {[%clk 0:02:28.7]} 27. Nd2 {[%clk 0:02:03.5]} 27...
e5 {[%clk 0:02:28.5]} 28. Be3 {[%clk 0:02:04.2]} 28... Nxd6 {[%clk 0:02:27.2]}
29. Nc4 {[%clk 0:01:59.7]} 29... Nb7 {[%clk 0:02:06.3]} 30. Ke4 {[%clk
0:01:57.5]} 30... Kf7 {[%clk 0:01:51.9]} 31. Kd5 {[%clk 0:01:57.4]} 31... Ke7
{[%clk 0:01:51.1]} 32. a5 {[%clk 0:01:52.9]} 32... Nb8 {[%clk 0:01:24.3]} 33.
Bxc5+ {[%clk 0:01:48.5]} 33... Kd7 {[%clk 0:01:21.3]} 34. Bf8 {[%clk 0:01:40.7]}
34... g6 {[%clk 0:01:19.6]} 35. g4 {[%clk 0:01:35]} 35... Na6 {[%clk 0:01:14.3]}
36. Nb6+ {[%clk 0:01:15.1]} 36... Ke8 {[%clk 0:01:10.9]} 37. Ba3 {[%clk
0:01:08.1]} 37... Nxa5 {[%clk 0:01:08]} 38. Ke6 {[%clk 0:01:08.4]} 38... f5
{[%clk 0:00:18.8]} 39. g5 {[%clk 0:01:08.3]} 39... e4 {[%clk 0:00:17]} 40. Nd5
{[%clk 0:01:06.7]} 40... Nc4 {[%clk 0:00:12.3]} 41. Nf6+ {[%clk 0:01:06.6]}
41... Kd8 {[%clk 0:00:12.1]} 42. Bc1 {[%clk 0:01:03.2]} 1-0

[Event "Early-Titled-Tuesday-Blitz-October-17-2023"]
[Site "Chess.com"]
[Date "2023.10.17"]
[Round "4"]
[White "aghasiyevkamal"]
[Black "Balla_Tamas"]
[Result "1-0"]
[WhiteElo "2608"]
[BlackElo "2400"]
[TimeControl "180+1"]
[EndTime "8:40:40 PDT"]
[Termination "aghasiyevkamal won by resignation"]

1. e4 {[%clk 0:03:00.6]} 1... c5 {[%clk 0:02:58.7]} 2. Nf3 {[%clk 0:02:59.4]}
2... Nc6 {[%clk 0:02:59.2]} 3. Bb5 {[%clk 0:02:57.6]} 3... Nf6 {[%clk
0:02:58.8]} 4. Bxc6 {[%clk 0:02:52.9]} 4... dxc6 {[%clk 0:02:55.7]} 5. e5 {[%clk
0:02:51.3]} 5... Nd5 {[%clk 0:02:55]} 6. h3 {[%clk 0:02:49.4]} 6... Bf5 {[%clk
0:02:51.3]} 7. d3 {[%clk 0:02:48.9]} 7... h6 {[%clk 0:02:50.3]} 8. O-O {[%clk
0:02:47.5]} 8... Nc7 {[%clk 0:02:49.6]} 9. a4 {[%clk 0:02:44]} 9... a5 {[%clk
0:02:49.1]} 10. Na3 {[%clk 0:02:38.3]} 10... e6 {[%clk 0:02:46.5]} 11. Nc4
{[%clk 0:02:37.5]} 11... Nd5 {[%clk 0:02:31]} 12. Bd2 {[%clk 0:02:31.2]} 12...
b6 {[%clk 0:02:29]} 13. Qe2 {[%clk 0:02:22.5]} 13... Be7 {[%clk 0:02:22.7]} 14.
Nh2 {[%clk 0:02:06.6]} 14... O-O {[%clk 0:02:18.7]} 15. f4 {[%clk 0:02:04.7]}
15... Bh7 {[%clk 0:02:17.3]} 16. Ng4 {[%clk 0:01:59]} 16... Kh8 {[%clk
0:02:10.8]} 17. Nf2 {[%clk 0:01:58.2]} 17... f6 {[%clk 0:02:05.7]} 18. Ne4
{[%clk 0:01:54.8]} 18... Qc7 {[%clk 0:02:00.6]} 19. exf6 {[%clk 0:01:39.8]}
19... Bxf6 {[%clk 0:01:52.1]} 20. Nxf6 {[%clk 0:01:39.4]} 20... Rxf6 {[%clk
0:01:53]} 21. Ne5 {[%clk 0:01:39.1]} 21... Raf8 {[%clk 0:01:52]} 22. g3 {[%clk
0:01:32.8]} 22... Ne7 {[%clk 0:01:48]} 23. Ng4 {[%clk 0:01:30]} 23... Rg6 {[%clk
0:01:38.3]} 24. Kh2 {[%clk 0:01:29.6]} 24... Nf5 {[%clk 0:01:27.8]} 25. Bc3
{[%clk 0:01:14.8]} 25... h5 {[%clk 0:01:20.3]} 26. Ne5 {[%clk 0:01:11.2]} 26...
Rxg3 {[%clk 0:01:17.5]} 27. Qxh5 {[%clk 0:01:10.3]} 27... Kg8 {[%clk 0:01:05.8]}
28. Rg1 {[%clk 0:01:05.5]} 28... Rxg1 {[%clk 0:01:05]} 29. Rxg1 {[%clk
0:01:06.4]} 29... b5 {[%clk 0:01:02.7]} 30. b3 {[%clk 0:01:00.6]} 30... Nd4
{[%clk 0:00:53.4]} 31. Bxd4 {[%clk 0:00:55]} 31... cxd4 {[%clk 0:00:54.3]} 32.
Rg4 {[%clk 0:00:54]} 32... Rf5 {[%clk 0:00:53.1]} 33. Qe8+ {[%clk 0:00:52.7]}
33... Rf8 {[%clk 0:00:50.9]} 34. Qxe6+ {[%clk 0:00:52.4]} 34... Kh8 {[%clk
0:00:51.5]} 35. Rh4 {[%clk 0:00:51.6]} 35... g5 {[%clk 0:00:42.9]} 36. Ng6+
{[%clk 0:00:49.4]} 36... Kg7 {[%clk 0:00:43.2]} 37. Rxh7+ {[%clk 0:00:49.5]}
37... Kxh7 {[%clk 0:00:41.4]} 38. Nxf8+ {[%clk 0:00:50.4]} 38... Kg7 {[%clk
0:00:41.8]} 39. Qf5 {[%clk 0:00:36.3]} 39... gxf4 {[%clk 0:00:37.6]} 40. Ne6+
{[%clk 0:00:35.8]} 1-0